fUST/lending_fUST_20240730
["ID","MTS","AMOUNT","RATE_DAILY","PERIOD"]
[333653190,1722306647275,-500.0,0.00013698,2]
[333653191,1722306647285,-151.0,0.00013698,2]
[333653192,1722306647295,-151.0,0.00013698,2]
[333653193,1722306647304,-151.0,0.00013698,2]
[333653194,1722306647314,-151.0,0.00013698,2]
[333653195,1722306647324,-151.0,0.00013698,2]
[333653196,1722306647333,-151.0,0.00013698,2]
[333653197,1722306647343,-188.66237129,0.00013698,2]
[333653198,1722306647352,-151.0,0.00013698,2]
[333653199,1722306647362,-151.0,0.00013698,2]
[333653200,1722306647371,-154.225391,0.00013698,2]
[333653201,1722306647381,-500.0,0.00013698,2]
[333653202,1722306647391,-500.0,0.00013698,2]
[333653203,1722306647400,-500.0,0.00013698,2]
[333653204,1722306647410,-500.0,0.00013698,2]
[333653205,1722306647420,-500.0,0.00013698,2]
[333653206,1722306647430,-500.0,0.00013698,2]
[333653207,1722306647439,-500.0,0.00013698,2]
[333653208,1722306647449,-468.704239,0.00013698,2]
[333653209,1722306647459,-468.704239,0.00013698,2]
[333653210,1722306647469,-468.704239,0.00013698,2]
[333653211,1722306647479,-468.704239,0.00013698,2]
[333653212,1722306647488,-468.704239,0.00013698,2]
[333653213,1722306647498,-468.704239,0.00013698,2]
[333653214,1722306647508,-468.704239,0.00013698,2]
[333653215,1722306647517,-468.704239,0.00013698,2]
[333653216,1722306647526,-468.704239,0.00013698,2]
[333653217,1722306647535,-468.704239,0.00013698,2]
[333653218,1722306647545,-468.704239,0.00013698,2]
[333653219,1722306647562,-468.704239,0.00013698,2]
[333653220,1722306647572,-500.0,0.00013698,2]
[333653221,1722306647581,-439.98445815,0.00013698,2]
[333653222,1722306647592,-151.0,0.00013698,2]
[333653223,1722306647606,-151.0,0.00013698,2]
[333653224,1722306647615,-171.748383,0.00013698,2]
[333653225,1722306647625,-500.0,0.00013698,2]
[333653226,1722306647637,-500.0,0.00013698,2]
[333653227,1722306647647,-500.0,0.00013698,2]
[333653228,1722306647656,-151.0,0.00013698,2]
[333653229,1722306647666,-151.0,0.00013698,2]
[333653230,1722306647675,-151.0,0.00013698,2]
[333653231,1722306647684,-151.0,0.00013698,2]
[333653232,1722306647694,-151.0,0.00013698,2]
[333653233,1722306647703,-152.9498,0.00013698,2]
[333653234,1722306647712,-500.0,0.00013698,2]
[333653235,1722306647723,-500.0,0.00013698,2]
[333653236,1722306647732,-500.0,0.00013698,2]
[333653237,1722306647742,-187.06213236,0.00013698,2]
[333653238,1722306647751,-500.0,0.00013698,2]
[333653239,1722306647761,-189.37319,0.00013698,2]
[333653240,1722306647770,-500.0,0.00013698,2]
[333653241,1722306647780,-715.949641,0.00013698,2]
[333653242,1722306647789,-715.949641,0.00013698,2]
[333653243,1722306647798,-715.949641,0.00013698,2]
[333653244,1722306647807,-715.949641,0.00013698,2]
[333653245,1722306647816,-715.949641,0.00013698,2]
[333653246,1722306647826,-715.949641,0.00013698,2]
[333653247,1722306647836,-715.949641,0.00013698,2]
[333653248,1722306647911,-500.0,0.00013698,2]
[333653249,1722306647920,-715.949641,0.00013698,2]
[333653250,1722306647930,-715.949641,0.00013698,2]
[333653251,1722306647939,-715.949641,0.00013698,2]
[333653252,1722306647949,-715.949641,0.00013698,2]
[333653253,1722306647958,-715.949641,0.00013698,2]
[333653254,1722306647969,-151.0,0.00013698,2]
[333653255,1722306647978,-151.646262,0.00013698,2]
[333653256,1722306647987,-151.0,0.00013698,2]
[333653257,1722306647997,-151.0,0.00013698,2]
[333653258,1722306648006,-151.0,0.00013698,2]
[333653259,1722306648016,-151.0,0.00013698,2]
[333653260,1722306648025,-229.985434,0.00013698,2]
[333653261,1722306648035,-151.0,0.00013698,2]
[333653262,1722306648045,-151.0,0.00013698,2]
[333653263,1722306648055,-152.470151,0.00013698,2]
[333653264,1722306648065,-500.0,0.00013698,2]
[333653265,1722306648075,-502.74610859,0.00013698,2]
[333653266,1722306648084,-500.0,0.00013698,2]
[333653267,1722306648095,-501.61045526,0.00013698,2]
[333653268,1722306648104,-400.0,0.00013698,2]
[333653269,1722306648114,-151.0,0.00013698,2]
[333653270,1722306648123,-151.0,0.00013698,2]
[333653271,1722306648133,-151.0,0.00013698,2]
[333653272,1722306648142,-151.0,0.00013698,2]
[333653273,1722306648152,-151.0,0.00013698,2]
[333653274,1722306648161,-161.66849535,0.00013698,2]
[333653275,1722306648171,-151.0,0.00013698,2]
[333653276,1722306648180,-500.0,0.00013698,2]
[333653277,1722306648189,-500.0,0.00013698,2]
[333653278,1722306648199,-595.2964921,0.00013698,2]
[333653279,1722306648208,-500.0,0.00013698,2]
[333653280,1722306648220,-227.488028,0.00013698,2]
[333653281,1722306648229,-227.488028,0.00013698,2]
[333653282,1722306648239,-227.488028,0.00013698,2]
[333653283,1722306648248,-151.0,0.00013698,2]
[333653284,1722306648257,-239.470899,0.00013698,2]
[333653285,1722306648267,-227.488028,0.00013698,2]
[333653286,1722306648277,-227.488028,0.00013698,2]
[333653287,1722306648286,-227.488028,0.00013698,2]
[333653288,1722306648296,-227.488028,0.00013698,2]
[333653289,1722306648306,-151.0,0.00013698,2]
[333653290,1722306648315,-151.0,0.00013698,2]
[333653291,1722306648325,-227.488028,0.00013698,2]
[333653292,1722306648335,-151.680193,0.00013698,2]
[333653293,1722306648344,-227.488028,0.00013698,2]
[333653294,1722306648353,-227.488028,0.00013698,2]
[333653295,1722306648362,-227.488028,0.00013698,2]
[333653296,1722306648371,-227.488028,0.00013698,2]
[333653297,1722306648380,-227.488028,0.00013698,2]
[333653298,1722306648390,-227.488028,0.00013698,2]
[333653299,1722306648399,-500.0,0.00013698,2]
[333653300,1722306648409,-500.0,0.00013698,2]
[333653301,1722306648419,-690.160229,0.00013698,2]
[333653302,1722306648428,-690.160229,0.00013698,2]
[333653303,1722306648437,-151.0,0.00013698,2]
[333653304,1722306648447,-690.160229,0.00013698,2]
[333653305,1722306648457,-151.0,0.00013698,2]
[333653306,1722306648467,-690.160229,0.00013698,2]
[333653307,1722306648476,-151.0,0.00013698,2]
[333653308,1722306648486,-690.160229,0.00013698,2]
[333653309,1722306648496,-151.0,0.00013698,2]
[333653310,1722306648505,-501.31137635,0.00013698,2]
[333653311,1722306648515,-690.160229,0.00013698,2]
[333653312,1722306648525,-151.0,0.00013698,2]
[333653313,1722306648534,-690.160229,0.00013698,2]
[333653314,1722306648544,-151.0,0.00013698,2]
[333653315,1722306648558,-690.160229,0.00013698,2]
[333653316,1722306648567,-151.0,0.00013698,2]
[333653317,1722306648576,-690.160229,0.00013698,2]
[333653318,1722306648586,-690.160229,0.00013698,2]
[333653319,1722306648597,-690.160229,0.00013698,2]
[333653320,1722306648606,-500.0,0.00013698,2]
[333653321,1722306648615,-690.160229,0.00013698,2]
[333653322,1722306648624,-690.160229,0.00013698,2]
[333653323,1722306648636,-690.160229,0.00013698,2]
[333653324,1722306648647,-500.0,0.00013698,2]
[333653325,1722306648657,-500.0,0.00013698,2]
[333653326,1722306648667,-330.0,0.00013698,2]
[333653327,1722306648677,-500.0,0.00013698,2]
[333653328,1722306648686,-500.0,0.00013698,2]
[333653329,1722306648696,-500.0,0.00013698,2]
[333653330,1722306648705,-500.0,0.00013698,2]
[333653331,1722306648714,-500.0,0.00013698,2]
[333653332,1722306648724,-167.440939,0.00013698,2]
[333653333,1722306648734,-167.440939,0.00013698,2]
[333653334,1722306648743,-167.440939,0.00013698,2]
[333653335,1722306648753,-167.440939,0.00013698,2]
[333653336,1722306648762,-167.440939,0.00013698,2]
[333653337,1722306648771,-167.440939,0.00013698,2]
[333653338,1722306648781,-167.440939,0.00013698,2]
[333653339,1722306648790,-167.440939,0.00013698,2]
[333653340,1722306648799,-167.440939,0.00013698,2]
[333653341,1722306648808,-167.440939,0.00013698,2]
[333653342,1722306648817,-167.440939,0.00013698,2]
[333653343,1722306648827,-167.440939,0.00013698,2]
[333653344,1722306648836,-167.440939,0.00013698,2]
[333653345,1722306648846,-167.440939,0.00013698,2]
[333653346,1722306648855,-151.0,0.00013698,2]
[333653347,1722306648864,-151.0,0.00013698,2]
[333653348,1722306648874,-151.0,0.00013698,2]
[333653349,1722306648883,-151.0,0.00013698,2]
[333653350,1722306648892,-151.0,0.00013698,2]
[333653351,1722306648901,-151.0,0.00013698,2]
[333653352,1722306648910,-151.0,0.00013698,2]
[333653353,1722306648919,-222.583409,0.00013698,2]
[333653354,1722306648929,-2005.719484,0.00013698,2]
[333653355,1722306648939,-2005.719484,0.00013698,2]
[333653356,1722306648948,-2005.719484,0.00013698,2]
[333653357,1722306648957,-2005.719484,0.00013698,2]
[333653358,1722306648967,-2005.719484,0.00013698,2]
[333653359,1722306648976,-2005.719484,0.00013698,2]
[333653360,1722306649046,-2005.719484,0.00013698,2]
[333653361,1722306649056,-2005.719484,0.00013698,2]
[333653362,1722306649066,-2005.719484,0.00013698,2]
[333653363,1722306649075,-2005.719484,0.00013698,2]
[333653364,1722306649086,-2005.719484,0.00013698,2]
[333653365,1722306649095,-2005.719484,0.00013698,2]
[333653366,1722306649104,-2005.719484,0.00013698,2]
[333653367,1722306649113,-2005.719484,0.00013698,2]
[333653368,1722306649123,-297.131735,0.00013698,2]
[333653369,1722306649132,-297.131735,0.00013698,2]
[333653370,1722306649142,-297.131735,0.00013698,2]
[333653371,1722306649151,-297.131735,0.00013698,2]
[333653372,1722306649161,-297.131735,0.00013698,2]
[333653373,1722306649171,-297.131735,0.00013698,2]
[333653374,1722306649181,-297.131735,0.00013698,2]
[333653375,1722306649191,-297.131735,0.00013698,2]
[333653376,1722306649201,-297.131735,0.00013698,2]
[333653377,1722306649210,-297.131735,0.00013698,2]
[333653378,1722306649221,-297.131735,0.00013698,2]
[333653379,1722306649231,-297.131735,0.00013698,2]
[333653380,1722306649241,-297.131735,0.00013698,2]
[333653381,1722306649252,-297.131735,0.00013698,2]
[333653382,1722306649261,-151.0,0.00013698,2]
[333653383,1722306649271,-151.0,0.00013698,2]
[333653384,1722306649280,-151.0,0.00013698,2]
[333653385,1722306649290,-151.0,0.00013698,2]
[333653386,1722306649300,-151.0,0.00013698,2]
[333653387,1722306649309,-151.0,0.00013698,2]
[333653388,1722306649321,-151.0,0.00013698,2]
[333653389,1722306649332,-210.463034,0.00013698,2]
[333653390,1722306649342,-176.634842,0.00013698,2]
[333653391,1722306649352,-176.634842,0.00013698,2]
[333653392,1722306649362,-176.634842,0.00013698,2]
[333653393,1722306649371,-176.634842,0.00013698,2]
[333653394,1722306649382,-176.634842,0.00013698,2]
[333653395,1722306649393,-176.634842,0.00013698,2]
[333653396,1722306649402,-176.634842,0.00013698,2]
[333653397,1722306649413,-176.634842,0.00013698,2]
[333653398,1722306649424,-176.634842,0.00013698,2]
[333653399,1722306649434,-176.634842,0.00013698,2]
[333653400,1722306649444,-176.634842,0.00013698,2]
[333653401,1722306649455,-176.634842,0.00013698,2]
[333653402,1722306649465,-176.634842,0.00013698,2]
[333653403,1722306649476,-176.634842,0.00013698,2]
[333653404,1722306649486,-176.634842,0.00013698,2]
[333653405,1722306649497,-176.634842,0.00013698,2]
[333653406,1722306649507,-504.72185137,0.00013698,2]
[333653407,1722306649517,-237.042665,0.00013698,2]
[333653408,1722306649527,-237.042665,0.00013698,2]
[333653409,1722306649537,-237.042665,0.00013698,2]
[333653410,1722306649549,-237.042665,0.00013698,2]
[333653411,1722306649561,-237.042665,0.00013698,2]
[333653412,1722306649572,-237.042665,0.00013698,2]
[333653413,1722306649582,-237.042665,0.00013698,2]
[333653414,1722306649593,-237.042665,0.00013698,2]
[333653415,1722306649603,-237.042665,0.00013698,2]
[333653416,1722306649613,-237.042665,0.00013698,2]
[333653417,1722306649624,-237.042665,0.00013698,2]
[333653418,1722306649634,-237.042665,0.00013698,2]
[333653419,1722306649645,-237.042665,0.00013698,2]
[333653420,1722306649655,-237.042665,0.00013698,2]
[333653421,1722306649666,-237.042665,0.00013698,2]
[333653422,1722306649675,-237.042665,0.00013698,2]
[333653423,1722306649685,-151.0,0.00013698,2]
[333653424,1722306649695,-151.0,0.00013698,2]
[333653425,1722306649705,-151.0,0.00013698,2]
[333653426,1722306649715,-151.0,0.00013698,2]
[333653427,1722306649726,-152.586174,0.00013698,2]
[333653428,1722306649735,-345.459445,0.00013698,2]
[333653429,1722306649745,-345.459445,0.00013698,2]
[333653430,1722306649755,-345.459445,0.00013698,2]
[333653431,1722306649764,-345.459445,0.00013698,2]
[333653432,1722306649774,-345.459445,0.00013698,2]
[333653433,1722306649784,-345.459445,0.00013698,2]
[333653434,1722306649795,-345.459445,0.00013698,2]
[333653435,1722306649805,-345.459445,0.00013698,2]
[333653436,1722306649814,-345.459445,0.00013698,2]
[333653437,1722306649824,-355.969287,0.00013698,2]
[333653438,1722306649834,-355.969287,0.00013698,2]
[333653439,1722306649844,-355.969287,0.00013698,2]
[333653440,1722306649854,-345.459445,0.00013698,2]
[333653441,1722306649864,-355.969287,0.00013698,2]
[333653442,1722306649874,-345.459445,0.00013698,2]
[333653443,1722306649884,-3000.0,0.00013699,2]
[333653444,1722306649894,-152.679808,0.00013699,2]
[333653445,1722306649904,-1732.147801,0.00013699,2]
[333653446,1722306649915,-355.0,0.00013699,2]
[333653447,1722306649925,-151.0,0.00013699,2]
[333653448,1722306649935,-151.0,0.00013699,2]
[333653449,1722306649945,-151.0,0.00013699,2]
[333653450,1722306649954,-151.0,0.00013699,2]
[333653451,1722306649964,-152.462386,0.00013699,2]
[333653452,1722306649975,-1000.0,0.00013699,2]
[333653453,1722306649986,-1000.0,0.00013699,2]
[333653454,1722306649996,-1000.0,0.00013699,2]
[333653455,1722306650006,-1000.0,0.00013699,2]
[333653456,1722306650016,-1000.0,0.00013699,2]
[333653457,1722306650026,-1000.0,0.00013699,2]
[333653458,1722306650036,-1000.0,0.00013699,2]
[333653459,1722306650046,-1000.0,0.00013699,2]
[333653460,1722306650056,-1000.0,0.00013699,2]
[333653461,1722306650065,-1000.0,0.00013699,2]
[333653462,1722306650075,-1000.0,0.00013699,2]
[333653463,1722306650084,-1000.0,0.00013699,2]
[333653464,1722306650152,-1000.0,0.00013699,2]
[333653465,1722306650163,-1000.0,0.00013699,2]
[333653466,1722306650174,-1000.0,0.00013699,2]
[333653467,1722306650183,-1000.0,0.00013699,2]
[333653468,1722306650193,-1000.0,0.00013699,2]
[333653469,1722306650202,-1000.0,0.00013699,2]
[333653470,1722306650212,-1000.0,0.00013699,2]
[333653471,1722306650224,-1000.0,0.00013699,2]
[333653472,1722306650233,-1000.0,0.00013699,2]
[333653473,1722306650243,-1000.0,0.00013699,2]
[333653474,1722306650252,-1000.0,0.00013699,2]
[333653475,1722306650262,-1000.0,0.00013699,2]
[333653476,1722306650271,-1000.0,0.00013699,2]
[333653477,1722306650280,-1000.0,0.00013699,2]
[333653478,1722306650290,-1000.0,0.00013699,2]
[333653479,1722306650300,-1000.0,0.00013699,2]
[333653480,1722306650310,-1000.0,0.00013699,2]
[333653481,1722306650319,-1000.0,0.00013699,2]
[333653482,1722306650329,-1000.0,0.00013699,2]
[333653483,1722306650338,-1000.0,0.00013699,2]
[333653484,1722306650347,-1000.0,0.00013699,2]
[333653485,1722306650357,-1000.0,0.00013699,2]
[333653486,1722306650368,-1000.0,0.00013699,2]
[333653487,1722306650378,-1000.0,0.00013699,2]
[333653488,1722306650388,-1000.0,0.00013699,2]
[333653489,1722306650398,-1000.0,0.00013699,2]
[333653490,1722306650407,-1000.0,0.00013699,2]
[333653491,1722306650417,-1000.0,0.00013699,2]
[333653492,1722306650427,-206.8555981,0.00013699,2]
[333653493,1722306650437,-206.8555981,0.00013699,2]
[333653494,1722306650446,-206.8555981,0.00013699,2]
[333653495,1722306650456,-268.04871592,0.000137,2]
[333653496,1722306650467,-150.112233,0.000137,2]
[333653497,1722306650478,-150.112233,0.000137,2]
[333653498,1722306650487,-150.112233,0.000137,2]
[333653499,1722306650497,-150.112233,0.000137,2]
[333653500,1722306650507,-206.8555981,0.00013705,2]
[333653501,1722306650517,-150.112233,0.000138,2]
[333653502,1722306650527,-150.112233,0.000138,2]
[333653503,1722306650538,-150.112233,0.000138,2]
[333653504,1722306650548,-151.0,0.00013862,2]
[333653505,1722306650561,-468.704239,0.00013862,2]
[333653506,1722306650571,-468.704239,0.00013862,2]
[333653507,1722306650580,-227.488028,0.00013862,2]
[333653508,1722306650591,-227.488028,0.00013862,2]
[333653509,1722306650601,-690.160229,0.00013862,2]
[333653510,1722306650611,-690.160229,0.00013862,2]
[333653511,1722306650621,-152.284521,0.00013862,2]
[333653512,1722306650632,-167.440939,0.00013862,2]
[333653513,1722306650646,-167.440939,0.00013862,2]
[333653514,1722306650666,-151.0,0.00013862,2]
[333653515,1722306650683,-2005.719484,0.00013862,2]
[333653516,1722306650703,-2005.719484,0.00013862,2]
[333653517,1722306650722,-297.131735,0.00013862,2]
[333653518,1722306650739,-297.131735,0.00013862,2]
[333653519,1722306650758,-176.634842,0.00013862,2]
[333653520,1722306650772,-176.63484241,0.00013862,2]
[333653521,1722306650788,-237.042665,0.00013862,2]
[333653522,1722306650809,-237.04266402,0.00013862,2]
[333653523,1722306650823,-200.0,0.00013879,2]
[333653524,1722306650838,-96669.13691712,0.0001388,2]
[333653525,1722306651456,-14109.48805534,0.0001388,2]
[333653526,1722306651469,-3421.82264615,0.0001388,2]
[333653527,1722306651481,-345.04671977,0.0001388,2]
[333653530,1722307154686,1000.0,0.00027,120]
[333653652,1722307839300,-300.0,9.998e-05,2]
[333653654,1722307839311,-600.4958747,9.999e-05,2]
[333653656,1722307839321,-254.27897029,9.999e-05,2]
[333653658,1722307839330,-542.84567384,9.999e-05,2]
[333653660,1722307839341,-288.35895155,9.999e-05,2]
[333653662,1722307839350,-387.98828502,9.999e-05,2]
[333653664,1722307839360,-405.0185737,9.999e-05,2]
[333653666,1722307839370,-344.3115031,9.999e-05,2]
[333653668,1722307839379,-264.29887796,9.999e-05,2]
[333653670,1722307839389,-179.98818922,9.999e-05,2]
[333653672,1722307839398,-346.13871728,9.999e-05,2]
[333653674,1722307839407,-376.5103825,9.999e-05,2]
[333653676,1722307839417,-531.33119659,9.999e-05,2]
[333653678,1722307839426,-244.74168763,9.999e-05,2]
[333653680,1722307839436,-813.19736176,9.999e-05,2]
[333653682,1722307839446,-852.19053207,9.999e-05,2]
[333653684,1722307839456,-244.74168763,9.999e-05,2]
[333653687,1722307839466,-155.38763152,0.0001,2]
[333653689,1722307839478,-895.79,0.00010959,2]
[333653691,1722307839488,-214.98,0.00010959,2]
[333653693,1722307839497,-179.15,0.00010959,2]
[333653694,1722307839506,-18624.88927381,0.00012306,2]
[333653697,1722307839519,-1383.41742431,0.00012306,2]
[333653886,1722307841318,-4891.69330188,0.00012306,2]
[333653888,1722307841329,-2346.95518743,0.000129,2]
[333653890,1722307841341,-200.0,0.00012986,2]
[333653892,1722307841351,-150.0,0.00013448,2]
[333653894,1722307841361,-1410.0,0.00013448,2]
[333653897,1722307841372,-5309.14259123,0.00013526,2]
[333653899,1722307841382,-150.45995518,0.00013595,2]
[333653901,1722307841391,-414.6969218,0.000136,2]
[333653903,1722307841400,-337.1697747,0.00013609,2]
[333653905,1722307841410,-500.0,0.00013698,2]
[333653907,1722307841422,-978.1764893,0.00013698,2]
[333653909,1722307841431,-500.0,0.00013698,2]
[333653911,1722307841441,-452.39477856,0.00013698,2]
[333653913,1722307841450,-167.12259025,0.00013698,2]
[333653915,1722307841460,-625.44392543,0.00013698,2]
[333653917,1722307841472,-500.0,0.00013698,2]
[333653919,1722307841483,-978.1764893,0.00013698,2]
[333653921,1722307841493,-978.1764893,0.00013698,2]
[333653923,1722307841502,-500.0,0.00013698,2]
[333653925,1722307841512,-500.0,0.00013698,2]
[333653927,1722307841522,-978.1764893,0.00013698,2]
[333653930,1722307841532,-500.0,0.00013698,2]
[333653932,1722307841541,-500.0,0.00013698,2]
[333653934,1722307841551,-500.0,0.00013698,2]
[333653936,1722307841561,-500.0,0.00013698,2]
[333653938,1722307841572,-978.1764893,0.00013698,2]
[333653940,1722307841584,-500.0,0.00013698,2]
[333653942,1722307841594,-978.1764893,0.00013698,2]
[333653944,1722307841605,-500.0,0.00013698,2]
[333653947,1722307841616,-978.1764893,0.00013698,2]
[333653949,1722307841626,-500.0,0.00013698,2]
[333653951,1722307841637,-184.60574449,0.00013698,2]
[333653953,1722307841646,-500.0,0.00013698,2]
[333653955,1722307841656,-289.70578048,0.00013698,2]
[333653957,1722307841666,-978.1764893,0.00013698,2]
[333653959,1722307841676,-978.1764893,0.00013698,2]
[333653961,1722307841686,-500.0,0.00013698,2]
[333653963,1722307841696,-978.1764893,0.00013698,2]
[333653965,1722307841705,-978.1764893,0.00013698,2]
[333653967,1722307841714,-978.1764893,0.00013698,2]
[333653968,1722307841726,-978.1764893,0.00013698,2]
[333653969,1722307841737,-500.0,0.00013698,2]
[333653970,1722307841746,-135.52560196,0.00013698,2]
[333654314,1722307916571,42693.0,0.00027,120]
[333654323,1722308960102,-402.08578826,9.999e-05,2]
[333654324,1722308960126,-288.40744436,9.999e-05,2]
[333654325,1722308960148,-275.99688424,0.0001,2]
[333654326,1722309019908,1008.13739149,0.0001,2]
[333654376,1722309032104,-271.87722815,0.0001,2]
[333654379,1722309032116,-355.89607217,0.0001,2]
[333654380,1722309032126,-242.25997924,0.0001,2]
[333654382,1722309032136,-300.0,0.00012495,2]
[333654384,1722309032145,-2017.91014159,0.00012496,2]
[333654386,1722309032157,-4914.6621638,0.00012496,2]
[333654391,1722309032321,-258.18004786,0.00012496,2]
[333654400,1722309038377,-12136.91760449,0.0001,2]
[333654401,1722309038387,-17709.24764675,0.00012496,2]
[333654402,1722309038398,-190.0,0.00012986,2]
[333654403,1722309038408,-1410.0,0.00013051,2]
[333654404,1722309038419,-1019.7752495,0.00013425,2]
[333654405,1722309038430,-150.0,0.00013448,2]
[333654406,1722309038440,-2201.64406875,0.0001359,2]
[333654407,1722309038453,-251.79526793,0.0001359,2]
[333654408,1722309038463,-251.79526793,0.00013594,2]
[333654409,1722309038474,-160.66468513,0.00013598,2]
[333654410,1722309038484,-251.79526793,0.00013598,2]
[333654411,1722309038494,-1706.46402414,0.00013598,2]
[333654412,1722309038503,-64257.687145,0.00013688,2]
[333654413,1722309038513,-4145.86,0.0001369,2]
[333654414,1722309038523,-18790.82166308,0.00013698,5]
[333654415,1722309038532,-842.65088734,0.00013698,2]
[333654416,1722309038543,-978.1764893,0.00013698,2]
[333654417,1722309038552,-978.1764893,0.00013698,2]
[333654418,1722309038563,-978.1764893,0.00013698,2]
[333654419,1722309038573,-500.0,0.00013698,2]
[333654420,1722309038582,-500.0,0.00013698,2]
[333654421,1722309038591,-500.0,0.00013698,2]
[333654422,1722309038601,-978.1764893,0.00013698,2]
[333654423,1722309038611,-978.1764893,0.00013698,2]
[333654424,1722309038620,-500.0,0.00013698,2]
[333654425,1722309038631,-978.1764893,0.00013698,2]
[333654426,1722309038640,-978.1764893,0.00013698,2]
[333654427,1722309038651,-500.0,0.00013698,2]
[333654428,1722309038662,-300.0,0.00013698,2]
[333654429,1722309038671,-500.0,0.00013698,2]
[333654430,1722309038681,-1115.12119778,0.00013698,2]
[333654431,1722309038690,-1115.12119778,0.00013698,2]
[333654432,1722309038702,-500.0,0.00013698,2]
[333654433,1722309038711,-1115.12119778,0.00013698,2]
[333654434,1722309038721,-1115.12119778,0.00013698,2]
[333654435,1722309038731,-1115.12119778,0.00013698,2]
[333654436,1722309038741,-159.72368943,0.00013698,2]
[333654437,1722309038843,-504.12180533,0.00013698,2]
[333654438,1722309038853,-479.82323604,0.00013698,2]
[333654439,1722309038864,-500.0,0.00013698,2]
[333654440,1722309038873,-500.0,0.00013698,2]
[333654441,1722309038883,-500.0,0.00013698,2]
[333654442,1722309038893,-500.0,0.00013698,2]
[333654443,1722309038902,-611.05780328,0.00013698,2]
[333654444,1722309038912,-506.61468855,0.00013698,2]
[333654445,1722309038922,-500.0,0.00013698,2]
[333654446,1722309038932,-500.0,0.00013698,2]
[333654447,1722309038941,-502.12713,0.00013698,2]
[333654448,1722309038954,-500.0,0.00013698,2]
[333654449,1722309038965,-500.0,0.00013698,2]
[333654450,1722309038975,-500.0,0.00013698,2]
[333654451,1722309038984,-527.05409066,0.00013698,2]
[333654452,1722309038994,-500.0,0.00013698,2]
[333654453,1722309039004,-500.0,0.00013698,2]
[333654454,1722309039013,-505.03278455,0.00013698,2]
[333654455,1722309039023,-500.0,0.00013698,2]
[333654456,1722309039034,-500.0,0.00013698,2]
[333654457,1722309039044,-500.0,0.00013698,2]
[333654458,1722309039054,-500.0,0.00013698,2]
[333654459,1722309039064,-500.0,0.00013698,2]
[333654460,1722309039074,-500.56517105,0.00013698,2]
[333654461,1722309039084,-394.9759661,0.00013698,2]
[333654462,1722309039097,-500.0,0.00013698,2]
[333654463,1722309039107,-500.0,0.00013698,2]
[333654464,1722309039119,-250.0,0.00013698,2]
[333654465,1722309039129,-500.0,0.00013698,2]
[333654466,1722309039139,-501.85469413,0.00013698,2]
[333654467,1722309039157,-505.01305,0.00013698,2]
[333654468,1722309039167,-500.0,0.00013698,2]
[333654469,1722309039176,-507.75444383,0.00013698,2]
[333654470,1722309039186,-500.0,0.00013698,2]
[333654471,1722309039197,-500.66877587,0.00013698,2]
[333654472,1722309039207,-512.79610687,0.00013698,2]
[333654473,1722309039217,-500.0,0.00013698,2]
[333654474,1722309039228,-180.00000001,0.00013698,2]
[333654475,1722309039238,-500.0,0.00013698,2]
[333654476,1722309039248,-503.31855622,0.00013698,2]
[333654477,1722309039258,-325.33863209,0.00013698,2]
[333654478,1722309039269,-510.13764201,0.00013698,2]
[333654479,1722309039278,-513.08801593,0.00013698,2]
[333654480,1722309039291,-200.48393973,0.00013698,2]
[333654481,1722309039300,-500.0,0.00013698,2]
[333654482,1722309039310,-506.14446225,0.00013698,2]